[Event "FIDE WCCC Open-12 2024"]
[Site "Montesilvano"]
[Date "2024.11.19"]
[Round "5.1"]
[White "Abdsattar, Alisher"]
[Black "Lacan Rus, David"]
[Result "0-1"]
[ECO "B33"]
[WhiteElo "2082"]
[BlackElo "2274"]
[Annotator "RC"]
[PlyCount "64"]
[EventDate "2024.11.18"]
[EventType "swiss"]
[EventCountry "ITA"]
[SourceTitle "playchess.com"]
[Source "ChessBase"]
[SourceQuality "1"]
[TimeControl "5400+30"]

1. e4 {[%emt 0:00:01]} c5 {[%emt 0:00:08]} 2. Nf3 {[%emt 0:00:12]} Nc6 {[%emt 0:00:05]} 3. d4 {[%emt 0:00:17]} cxd4 {[%emt 0:00:08]} 4. Nxd4 {[%emt 0:00:07]} Nf6 {[%emt 0:00:08]} 5. Nc3 {[%emt 0:00:08]} e5 {[%emt 0:00:04]} 6. Ndb5 {[%emt 0:00:15]} d6 {[%emt 0:00:06]} 7. Nd5 {[%emt 0:00:23]} Nxd5 {[%emt 0:00:08]} 8. exd5 {[%emt 0:00:05]} Nb8 {[%emt 0:01:11]} 9. a4 {[%emt 0:00:20]} Be7 {[%emt 0:00:07]} 10. a5 {[%emt 0:01:07]} a6 {[%emt 0:00:01]} 11. Nc3 {[%emt 0:00:19]} O-O {[%emt 0:01:13]} 12. Be2 {[%emt 0:01:32]} Nd7 {[%emt 0:00:31]} 13. O-O {[%emt 0:01:35]} f5 {[%emt 0:00:31]} 14. Be3 {[%emt 0:06:07]} Bg5 {[%emt 0:09:35]} 15. Bxg5 {[%emt 0:13:35]} Qxg5 {[%emt 0:00:01]} 16. Na4 {[%emt 0:01:07]} e4 {[%emt 0:03:42]} 17. f4 {[%emt 0:05:30]} exf3 {[%emt 0:01:04]} 18. Bxf3 {[%emt 0:00:05]} Ne5 {[%emt 0:02:50]} 19. Nb6 {[%emt 0:01:18]} Rb8 {[%emt 0:00:13]} 20. Qd4 {[%emt 0:03:01]} f4 {[%emt 0:03:47]} 21. Nc4 {[%emt 0:05:46]} Nxc4 {[%emt 0:08:27]} 22. Qxc4 {[%emt 0:00:05]} Bf5 {[%emt 0:00:23]} 23. c3 {[%emt 0:05:46]} Rf6 {[%emt 0:07:55]} 24. Qc7 {[%emt 0:10:43]} Rbf8 {[%emt 0:00:28]} 25. Rae1 {[%emt 0:06:38]} Qh4 {[%emt 0:19:10]} 26. Re7 {[%emt 0:18:33]} g5 {[%emt 0:15:05]} 27. h3 {[%emt 0:00:30]} h5 {[%emt 0:09:13]} 28. Bd1 {[%emt 0:12:39]} g4 {[%emt 0:07:19]} 29. Rg7+ {[%emt 0:01:58]} Kh8 {[%emt 0:00:02]} 30. Rxf4 {[%emt 0:00:46]} Qe1+ {[%emt 0:01:38]} 31. Rf1 {[%emt 0:02:08]} Qe3+ {[%emt 0:00:17]} 32. Kh2 {[%emt 0:02:09]} Bg6 {[%emt 0:04:20]} 0-1

[Event "FIDE WCCC Open-12 2024"]
[Site "Montesilvano"]
[Date "2024.11.19"]
[Round "5.2"]
[White "Golubovic, Erik"]
[Black "Golis, Wiktor"]
[Result "1/2-1/2"]
[ECO "E11"]
[WhiteElo "2147"]
[BlackElo "2343"]
[Annotator "RC"]
[PlyCount "119"]
[EventDate "2024.11.18"]
[EventType "swiss"]
[EventCountry "ITA"]
[SourceTitle "playchess.com"]
[Source "ChessBase"]
[SourceQuality "1"]
[TimeControl "5400+30"]

1. d4 {[%emt 0:00:04]} Nf6 {[%emt 0:00:11]} 2. c4 {[%emt 0:00:20]} e6 {[%emt 0:00:12]} 3. Nf3 {[%emt 0:00:23]} d5 {[%emt 0:00:12]} 4. g3 {[%emt 0:00:31]} Bb4+ {[%emt 0:00:47]} 5. Bd2 {[%emt 0:00:33]} a5 {[%emt 0:00:21]} 6. Bg2 {[%emt 0:01:03]} O-O {[%emt 0:00:18]} 7. Qc2 {[%emt 0:02:49]} Be7 {[%emt 0:00:46]} 8. O-O {[%emt 0:00:37]} c6 {[%emt 0:00:41]} 9. b3 {[%emt 0:01:32]} b6 {[%emt 0:01:52]} 10. Bc3 {[%emt 0:04:46]} Bb7 {[%emt 0:01:55]} 11. Nbd2 {[%emt 0:01:22]} c5 {[%emt 0:02:09]} 12. dxc5 {[%emt 0:13:50]} bxc5 {[%emt 0:02:39]} 13. Bxf6 {[%emt 0:06:33]} Bxf6 {[%emt 0:00:10]} 14. Rac1 {[%emt 0:01:52]} d4 {[%emt 0:11:14]} 15. Ne1 {[%emt 0:03:35]} Bxg2 {[%emt 0:02:38]} 16. Kxg2 {[%emt 0:00:11]} Nc6 {[%emt 0:00:16]} 17. Nd3 {[%emt 0:01:17]} Be7 {[%emt 0:03:51]} 18. Rcd1 {[%emt 0:02:35]} Qc7 {[%emt 0:04:50]} 19. Kg1 {[%emt 0:02:05]} Nb4 {[%emt 0:05:11]} 20. Qb1 {[%emt 0:05:24]} f5 {[%emt 0:14:16]} 21. a3 {[%emt 0:02:48]} Nc6 {[%emt 0:08:47]} 22. f4 {[%emt 0:13:13]} Bd6 {[%emt 0:01:22]} 23. Nf3 {[%emt 0:06:40]} e5 {[%emt 0:07:29]} 24. fxe5 {[%emt 0:02:08]} Nxe5 {[%emt 0:00:18]} 25. Ndxe5 {[%emt 0:03:29]} Bxe5 {[%emt 0:00:13]} 26. Nxe5 Qxe5 {[%emt 0:00:02]} 27. Qd3 {[%emt 0:03:17]} Rae8 {[%emt 0:01:25]} 28. b4 {[%emt 0:03:32]} axb4 {[%emt 0:02:17]} 29. axb4 {[%emt 0:00:07]} cxb4 {[%emt 0:00:52]} 30. Qxd4 {[%emt 0:05:52]} Qxd4+ {[%emt 0:06:16]} 31. Rxd4 {[%emt 0:00:02]} Rxe2 {[%emt 0:00:09]} 32. Rf2 {[%emt 0:06:12]} Re3 {[%emt 0:08:07]} 33. c5 {[%emt 0:04:22]} Rb8 {[%emt 0:01:09]} 34. Rb2 {[%emt 0:00:43]} b3 {[%emt 0:01:41]} 35. Rc4 {[%emt 0:01:01]} Re1+ {[%emt 0:07:14]} 36. Kf2 {[%emt 0:00:35]} Ra1 {[%emt 0:01:02]} 37. c6 {[%emt 0:01:41]} Ra2 {[%emt 0:00:05]} 38. Rxa2 {[%emt 0:00:43]} bxa2 {[%emt 0:00:02]} 39. c7 {[%emt 0:00:35]} Rc8 {[%emt 0:00:11]} 40. Ra4 {[%emt 0:00:14]} Rxc7 {[%emt 0:00:48]} 41. Rxa2 {[%emt 0:00:02]} Rc3 {[%emt 0:00:10]} 42. Kg2 {[%emt 0:01:12]} Kf7 {[%emt 0:00:14]} 43. h4 {[%emt 0:00:33]} Kg6 {[%emt 0:01:10]} 44. Ra5 {[%emt 0:00:49]} Rc6 {[%emt 0:00:32]} 45. Kf3 {[%emt 0:00:25]} Kf6 {[%emt 0:00:06]} 46. Ra7 {[%emt 0:00:48]} Rc3+ {[%emt 0:00:56]} 47. Kg2 {[%emt 0:00:33]} Kg6 {[%emt 0:00:19]} 48. Ra5 {[%emt 0:00:15]} Rc6 {[%emt 0:00:23]} 49. Kf3 {[%emt 0:00:14]} h6 {[%emt 0:00:58]} 50. Rb5 {[%emt 0:01:03]} Rf6 {[%emt 0:00:48]} 51. Rb7 {[%emt 0:00:52]} Rf7 {[%emt 0:00:48]} 52. Rb5 {[%emt 0:00:26]} Kh5 {[%emt 0:00:29]} 53. Kf4 {[%emt 0:00:27]} g6 {[%emt 0:01:09]} 54. Kf3 {[%emt 0:00:40]} Ra7 {[%emt 0:00:51]} 55. Rb3 {[%emt 0:00:27]} Ra4 {[%emt 0:00:27]} 56. Rb5 {[%emt 0:00:27]} Ra1 {[%emt 0:01:55]} 57. Kg2 {[%emt 0:00:22]} g5 {[%emt 0:02:16]} 58. hxg5 {[%emt 0:00:15]} hxg5 {[%emt 0:00:26]} 59. Rxf5 {[%emt 0:00:44]} Kg4 {[%emt 0:00:01]} 60. Rb5 {[%emt 0:00:29]} 1/2-1/2

[Event "FIDE WCCC Open-12 2024"]
[Site "Montesilvano"]
[Date "2024.11.19"]
[Round "5.3"]
[White "Fulgentini, Edoardo"]
[Black "Smirnov, Mark"]
[Result "1/2-1/2"]
[ECO "C63"]
[WhiteElo "2075"]
[BlackElo "2300"]
[Annotator "RC"]
[PlyCount "95"]
[EventDate "2024.11.18"]
[EventType "swiss"]
[EventCountry "ITA"]
[SourceTitle "playchess.com"]
[Source "ChessBase"]
[SourceQuality "1"]
[TimeControl "5400+30"]

1. e4 {[%emt 0:00:03]} e5 {[%emt 0:00:08]} 2. Nf3 {[%emt 0:00:13]} Nc6 {[%emt 0:00:04]} 3. Bb5 {[%emt 0:00:25]} f5 {[%emt 0:00:09]} 4. d3 {[%emt 0:00:07]} fxe4 {[%emt 0:00:13]} 5. dxe4 {[%emt 0:00:06]} Nf6 {[%emt 0:00:06]} 6. O-O {[%emt 0:00:04]} d6 {[%emt 0:00:09]} 7. Bc4 {[%emt 0:00:16]} Bg4 {[%emt 0:00:55]} 8. h3 {[%emt 0:00:07]} Bh5 {[%emt 0:00:19]} 9. Nc3 {[%emt 0:02:01]} Qd7 {[%emt 0:01:12]} 10. Be3 {[%emt 0:12:13]} h6 {[%emt 0:21:45]} 11. Be2 {[%emt 0:12:16]} Bf7 {[%emt 0:03:52]} 12. Nh2 {[%emt 0:03:14]} Be7 {[%emt 0:04:01]} 13. Ng4 {[%emt 0:03:07]} O-O {[%emt 0:06:22]} 14. Nxf6+ {[%emt 0:03:52]} Bxf6 {[%emt 0:00:11]} 15. Nd5 {[%emt 0:02:03]} Be6 {[%emt 0:03:23]} 16. Bg4 {[%emt 0:11:04]} Rac8 {[%emt 0:06:56]} 17. Bxe6+ {[%emt 0:03:57]} Qxe6 {[%emt 0:00:06]} 18. Qh5 {[%emt 0:01:06]} Ne7 {[%emt 0:02:32]} 19. Nxe7+ {[%emt 0:10:51]} Bxe7 {[%emt 0:01:28]} 20. a4 {[%emt 0:00:52]} Qc4 {[%emt 0:06:08]} 21. Qg4 {[%emt 0:02:52]} h5 {[%emt 0:01:41]} 22. Qxh5 {[%emt 0:01:31]} Qxe4 {[%emt 0:01:29]} 23. c3 {[%emt 0:01:04]} a5 {[%emt 0:04:28]} 24. Rfe1 {[%emt 0:02:04]} Qc4 {[%emt 0:03:34]} 25. Qe2 {[%emt 0:03:32]} Qxe2 {[%emt 0:02:09]} 26. Rxe2 {[%emt 0:00:01]} d5 {[%emt 0:00:29]} 27. Rd1 {[%emt 0:01:45]} Rcd8 {[%emt 0:02:39]} 28. Red2 {[%emt 0:02:38]} c6 {[%emt 0:00:38]} 29. Bb6 {[%emt 0:01:23]} Ra8 {[%emt 0:01:09]} 30. Bc7 {[%emt 0:05:56]} e4 {[%emt 0:02:38]} 31. Bb6 {[%emt 0:00:52]} Ra6 {[%emt 0:06:55]} 32. Be3 {[%emt 0:00:19]} Bf6 {[%emt 0:02:40]} 33. Rf1 {[%emt 0:03:51]} Be5 {[%emt 0:01:08]} 34. f3 {[%emt 0:04:01]} exf3 {[%emt 0:00:16]} 35. Rdf2 {[%emt 0:00:16]} b5 {[%emt 0:08:07]} 36. axb5 {[%emt 0:00:40]} cxb5 {[%emt 0:00:01]} 37. Rxf3 {[%emt 0:00:44]} Rxf3 {[%emt 0:00:59]} 38. Rxf3 {[%emt 0:00:01]} b4 {[%emt 0:01:53]} 39. cxb4 {[%emt 0:00:33]} axb4 {[%emt 0:00:05]} 40. Bc5 {[%emt 0:01:19]} Ra1+ {[%emt 0:02:54]} 41. Kf2 {[%emt 0:01:18]} Ra2 {[%emt 0:03:19]} 42. Rb3 {[%emt 0:00:12]} Bxb2 {[%emt 0:00:07]} 43. Bxb4 {[%emt 0:00:20]} Kf7 {[%emt 0:00:05]} 44. Kf3 {[%emt 0:00:59]} Bf6 {[%emt 0:00:21]} 45. Bc3 {[%emt 0:01:21]} d4 {[%emt 0:00:29]} 46. Bb2 {[%emt 0:01:02]} d3 {[%emt 0:01:56]} 47. Bxf6 {[%emt 0:00:15]} d2 {[%emt 0:00:04]} 48. Rb1 {[%emt 0:00:14]} 1/2-1/2

[Event "FIDE WCCC Open-12 2024"]
[Site "Montesilvano"]
[Date "2024.11.19"]
[Round "5.4"]
[White "Bulgak, Damir"]
[Black "Radzimski, Antoni"]
[Result "0-1"]
[ECO "D24"]
[WhiteElo "2044"]
[BlackElo "2188"]
[Annotator "RC"]
[PlyCount "128"]
[EventDate "2024.11.18"]
[EventType "swiss"]
[EventCountry "ITA"]
[SourceTitle "playchess.com"]
[Source "ChessBase"]
[SourceQuality "1"]
[TimeControl "5400+30"]

1. d4 {[%emt 0:00:34]} Nf6 {[%emt 0:00:09]} 2. c4 {[%emt 0:00:21]} e6 {[%emt 0:00:07]} 3. Nf3 {[%emt 0:00:25]} d5 {[%emt 0:00:06]} 4. Nc3 {[%emt 0:00:49]} dxc4 {[%emt 0:00:28]} 5. e4 {[%emt 0:00:19]} Bb4 {[%emt 0:00:11]} 6. Bxc4 {[%emt 0:00:10]} Nxe4 {[%emt 0:00:06]} 7. O-O {[%emt 0:00:04]} Nf6 {[%emt 0:00:08]} 8. Qa4+ {[%emt 0:01:21]} Nc6 {[%emt 0:00:05]} 9. Ne5 {[%emt 0:00:08]} Rb8 {[%emt 0:00:06]} 10. Rd1 {[%emt 0:00:27]} O-O {[%emt 0:01:32]} 11. Nxc6 {[%emt 0:00:48]} bxc6 {[%emt 0:00:06]} 12. Qxa7 {[%emt 0:00:55]} Bd7 {[%emt 0:00:11]} 13. Qa4 {[%emt 0:00:09]} c5 {[%emt 0:16:55]} 14. Qc2 {[%emt 0:00:39]} Bc6 {[%emt 0:07:09]} 15. Ne2 {[%emt 0:16:00]} cxd4 {[%emt 1:10:41]} 16. Nxd4 {[%emt 0:01:22]} Be4 {[%emt 0:00:00]} 17. Qe2 {[%emt 0:05:22]} Qe7 {[%emt 0:00:00]} 18. Bg5 {[%emt 0:06:10]} Ba8 {[%emt 0:00:00]} 19. a3 {[%emt 0:03:23]} Bd6 {[%emt 0:00:00]} 20. b4 {[%emt 0:03:56]} Rfd8 {[%emt 0:00:00]} 21. Nb5 {[%emt 0:11:12]} h6 {[%emt 0:00:00]} 22. Bh4 {[%emt 0:02:01]} Bf4 {[%emt 0:00:00]} 23. Rxd8+ {[%emt 0:22:08]} Rxd8 {[%emt 0:00:00]} 24. Rd1 {[%emt 0:00:39]} Bb7 {[%emt 0:00:00]} 25. Nc3 {[%emt 0:23:38]} Bd6 {[%emt 0:00:00]} 26. Bd3 {[%emt 0:00:00]} Ra8 {[%emt 0:00:00]} 27. Nb5 {[%emt 0:00:00]} Bf4 {[%emt 0:00:00]} 28. Be4 {[%emt 0:00:00]} c6 {[%emt 0:00:00]} 29. Qf3 {[%emt 0:00:00]} g5 {[%emt 0:00:00]} 30. Nd4 {[%emt 0:00:00]} Nxe4 {[%emt 0:00:00]} 31. Qxe4 {[%emt 0:00:00]} c5 {[%emt 0:00:00]} 32. Qxf4 {[%emt 0:00:00]} cxd4 {[%emt 0:00:00]} 33. Qg3 {[%emt 0:00:00]} Kh8 {[%emt 0:00:00]} 34. Rxd4 {[%emt 0:01:24]} gxh4 {[%emt 0:00:00]} 35. Qe5+ {[%emt 0:01:25]} f6 {[%emt 0:00:00]} 36. Qh5 {[%emt 0:00:03]} Qh7 {[%emt 0:00:00]} 37. g3 {[%emt 0:00:55]} Bd5 {[%emt 0:00:04]} 38. Rd1 {[%emt 0:01:03]} hxg3 {[%emt 0:00:31]} 39. hxg3 {[%emt 0:02:10]} Qe4 {[%emt 0:03:19]} 40. Qxh6+ {[%emt 0:00:00]} Kg8 {[%emt 0:00:07]} 41. Rxd5 {[%emt 0:00:12]} exd5 {[%emt 0:00:18]} 42. Qxf6 {[%emt 0:00:03]} d4 {[%emt 0:01:01]} 43. Qg5+ {[%emt 0:00:05]} Kf7 {[%emt 0:00:05]} 44. Qh5+ {[%emt 0:00:04]} Ke6 {[%emt 0:00:30]} 45. Qh6+ {[%emt 0:02:04]} Kd5 {[%emt 0:00:46]} 46. Qc1 {[%emt 0:00:31]} Rh8 {[%emt 0:03:34]} 47. Qc5+ {[%emt 0:00:28]} Ke6 {[%emt 0:00:12]} 48. Qb6+ {[%emt 0:00:08]} Kf5 {[%emt 0:01:01]} 49. Qb5+ {[%emt 0:00:04]} Kg4 {[%emt 0:01:21]} 50. Qd7+ {[%emt 0:00:22]} Kf3 {[%emt 0:00:16]} 51. Qf7+ {[%emt 0:00:05]} Ke2 {[%emt 0:00:32]} 52. Qa2+ {[%emt 0:01:16]} Kd1 {[%emt 0:00:19]} 53. Qa1+ {[%emt 0:00:30]} Kc2 {[%emt 0:00:14]} 54. Qa2+ {[%emt 0:00:07]} Kc3 {[%emt 0:00:09]} 55. Qa1+ {[%emt 0:00:02]} Kb3 {[%emt 0:00:15]} 56. Qd1+ {[%emt 0:00:45]} Ka2 {[%emt 0:00:11]} 57. f3 {[%emt 0:00:23]} Qe3+ {[%emt 0:00:07]} 58. Kg2 {[%emt 0:00:01]} d3 {[%emt 0:00:14]} 59. b5 {[%emt 0:00:15]} Qe2+ {[%emt 0:02:01]} 60. Qxe2+ {[%emt 0:00:12]} dxe2 {[%emt 0:00:02]} 61. Kf2 {[%emt 0:03:23]} Re8 {[%emt 0:00:24]} 62. Ke1 {[%emt 0:00:00]} Kb3 {[%emt 0:00:05]} 63. b6 {[%emt 0:00:00]} Kc3 {[%emt 0:00:04]} 64. b7 {[%emt 0:00:00]} Kd3 {[%emt 0:00:04]} 0-1

[Event "FIDE WCCC Open-12 2024"]
[Site "Montesilvano"]
[Date "2024.11.19"]
[Round "5.5"]
[White "Shilon Rahav, Eliran"]
[Black "Obidjonov, Oriyat"]
[Result "1/2-1/2"]
[ECO "B40"]
[WhiteElo "2150"]
[BlackElo "2074"]
[Annotator "RC"]
[PlyCount "73"]
[EventDate "2024.11.18"]
[EventType "swiss"]
[EventCountry "ITA"]
[SourceTitle "playchess.com"]
[Source "ChessBase"]
[SourceQuality "1"]
[TimeControl "5400+30"]

1. e4 {[%emt 0:00:05]} c5 {[%emt 0:00:23]} 2. Nf3 {[%emt 0:00:07]} e6 {[%emt 0:00:06]} 3. g3 {[%emt 0:00:10]} Nc6 {[%emt 0:01:18]} 4. Bg2 {[%emt 0:00:17]} Nf6 {[%emt 0:00:35]} 5. Qe2 {[%emt 0:00:16]} Qc7 {[%emt 0:00:19]} 6. O-O {[%emt 0:04:54]} d5 {[%emt 0:00:52]} 7. exd5 {[%emt 0:00:47]} Nxd5 {[%emt 0:00:13]} 8. Rd1 {[%emt 0:02:28]} Be7 {[%emt 0:09:46]} 9. d4 {[%emt 0:07:44]} cxd4 {[%emt 0:11:26]} 10. Nxd4 {[%emt 0:01:24]} Nxd4 {[%emt 0:09:56]} 11. Rxd4 {[%emt 0:00:20]} O-O {[%emt 0:00:18]} 12. Bxd5 {[%emt 0:08:28]} exd5 {[%emt 0:00:17]} 13. Nc3 {[%emt 0:00:24]} Be6 {[%emt 0:02:26]} 14. Nxd5 {[%emt 0:02:18]} Qc5 {[%emt 0:05:35]} 15. Nxe7+ {[%emt 0:01:25]} Qxe7 {[%emt 0:01:50]} 16. Bf4 {[%emt 0:01:21]} Rad8 {[%emt 0:01:51]} 17. Rad1 {[%emt 0:00:50]} Rxd4 {[%emt 0:01:02]} 18. Rxd4 {[%emt 0:00:10]} Qc5 {[%emt 0:01:47]} 19. c3 {[%emt 0:01:30]} Qc6 {[%emt 0:05:57]} 20. Rd6 {[%emt 0:03:16]} Qc5 {[%emt 0:00:56]} 21. Rxe6 {[%emt 0:03:54]} fxe6 {[%emt 0:00:15]} 22. Qxe6+ {[%emt 0:00:03]} Kh8 {[%emt 0:00:06]} 23. Be3 {[%emt 0:02:53]} Qf5 {[%emt 0:08:47]} 24. Qe7 {[%emt 0:02:10]} Rf7 {[%emt 0:00:38]} 25. Qd8+ {[%emt 0:03:12]} Rf8 {[%emt 0:00:04]} 26. Qd1 {[%emt 0:00:28]} b6 {[%emt 0:00:16]} 27. h4 {[%emt 0:02:11]} h6 {[%emt 0:37:01]} 28. Qd6 {[%emt 0:04:00]} Rf7 {[%emt 0:00:00]} 29. Bd4 {[%emt 0:04:17]} Kh7 {[%emt 0:00:00]} 30. Kh2 {[%emt 0:03:37]} Rd7 {[%emt 0:00:00]} 31. Qb4 {[%emt 0:00:57]} Qf3 {[%emt 0:00:00]} 32. a4 {[%emt 0:02:33]} Rd5 {[%emt 0:00:00]} 33. b3 {[%emt 0:04:06]} Rd7 {[%emt 0:00:00]} 34. Qc4 {[%emt 0:01:20]} Re7 {[%emt 0:00:00]} 35. Qf1 {[%emt 0:09:56]} Re2 {[%emt 0:00:00]} 36. Qb1+ {[%emt 0:12:26]} Kg8 {[%emt 0:00:00]} 37. Qg6 {[%emt 0:04:41]} 1/2-1/2

[Event "FIDE WCCC Open-12 2024"]
[Site "Montesilvano"]
[Date "2024.11.19"]
[Round "5.6"]
[White "Negrean, Andrei"]
[Black "Filindash, Nikita"]
[Result "1-0"]
[ECO "C42"]
[WhiteElo "2255"]
[BlackElo "2076"]
[Annotator "RC"]
[PlyCount "211"]
[EventDate "2024.11.18"]
[EventType "swiss"]
[EventCountry "ITA"]
[SourceTitle "playchess.com"]
[Source "ChessBase"]
[SourceQuality "1"]
[TimeControl "5400+30"]

1. e4 {[%emt 0:00:03]} e5 {[%emt 0:00:24]} 2. Nf3 {[%emt 0:00:11]} Nf6 {[%emt 0:00:01]} 3. Nc3 {[%emt 0:00:09]} Bb4 {[%emt 0:00:13]} 4. Nxe5 {[%emt 0:00:22]} O-O {[%emt 0:00:24]} 5. Be2 {[%emt 0:02:43]} Re8 {[%emt 0:02:01]} 6. Nd3 {[%emt 0:02:16]} Bxc3 {[%emt 0:00:29]} 7. dxc3 {[%emt 0:00:12]} Nxe4 {[%emt 0:00:11]} 8. O-O {[%emt 0:01:30]} d5 {[%emt 0:00:57]} 9. Be3 {[%emt 0:15:17]} Nd7 {[%emt 0:03:43]} 10. Nf4 {[%emt 0:12:26]} Ndf6 {[%emt 0:04:06]} 11. c4 {[%emt 0:05:35]} dxc4 {[%emt 0:01:00]} 12. Bxc4 {[%emt 0:00:32]} Bf5 {[%emt 0:04:21]} 13. c3 {[%emt 0:02:52]} Ng4 {[%emt 0:22:29]} 14. Qd5 {[%emt 0:25:21]} Qxd5 {[%emt 0:03:18]} 15. Nxd5 {[%emt 0:01:34]} Be6 {[%emt 0:20:28]} 16. Rfe1 {[%emt 0:11:24]} c6 {[%emt 0:11:52]} 17. Nc7 {[%emt 0:00:16]} Bxc4 {[%emt 0:00:08]} 18. Nxe8 {[%emt 0:02:11]} Rxe8 {[%emt 0:00:10]} 19. Bxa7 {[%emt 0:00:19]} Ngf6 {[%emt 0:00:33]} 20. f3 {[%emt 0:01:46]} Nd6 {[%emt 0:08:46]} 21. Bc5 {[%emt 0:01:31]} Rxe1+ {[%emt 0:09:26]} 22. Rxe1 {[%emt 0:00:02]} Nb5 {[%emt 0:04:01]} 23. a4 {[%emt 0:06:00]} Nc7 {[%emt 0:00:10]} 24. Re7 {[%emt 0:00:12]} Nfd5 {[%emt 0:00:18]} 25. Rd7 {[%emt 0:00:13]} f6 {[%emt 0:00:46]} 26. a5 {[%emt 0:00:59]} Ba6 {[%emt 0:01:26]} 27. c4 {[%emt 0:00:46]} Bxc4 {[%emt 0:01:18]} 28. Bb6 {[%emt 0:00:04]} Na6 {[%emt 0:00:13]} 29. Rxb7 {[%emt 0:00:08]} h6 {[%emt 0:00:22]} 30. h4 {[%emt 0:01:15]} h5 {[%emt 0:00:49]} 31. Bd4 {[%emt 0:01:12]} Nf4 {[%emt 0:01:01]} 32. Bc3 {[%emt 0:00:15]} Ng6 {[%emt 0:00:32]} 33. g3 {[%emt 0:00:16]} Bb5 {[%emt 0:00:13]} 34. Kf2 {[%emt 0:00:26]} Nf8 {[%emt 0:00:18]} 35. g4 {[%emt 0:00:57]} hxg4 {[%emt 0:00:01]} 36. fxg4 {[%emt 0:00:01]} Ne6 {[%emt 0:00:02]} 37. Ke3 {[%emt 0:00:53]} Nec7 {[%emt 0:00:14]} 38. Bd4 {[%emt 0:01:24]} Kh7 {[%emt 0:00:44]} 39. Ke4 {[%emt 0:01:41]} Kg6 {[%emt 0:01:53]} 40. Be3 {[%emt 0:00:17]} Bc4 {[%emt 0:00:28]} 41. h5+ {[%emt 0:02:12]} Kh7 {[%emt 0:00:01]} 42. h6 {[%emt 0:00:46]} Be6 {[%emt 0:01:05]} 43. Kf3 {[%emt 0:01:09]} Bc8 {[%emt 0:00:13]} 44. Ra7 {[%emt 0:00:18]} c5 {[%emt 0:00:26]} 45. Bxc5 {[%emt 0:01:05]} Kxh6 {[%emt 0:00:15]} 46. b4 {[%emt 0:00:52]} Kg6 {[%emt 0:00:54]} 47. Kg3 {[%emt 0:00:58]} f5 {[%emt 0:00:38]} 48. Bb6 {[%emt 0:00:51]} Nb5 {[%emt 0:00:22]} 49. gxf5+ {[%emt 0:00:22]} Kxf5 {[%emt 0:00:02]} 50. Rxg7 {[%emt 0:00:09]} Nxb4 {[%emt 0:00:08]} 51. Rg8 {[%emt 0:00:59]} Bb7 {[%emt 0:00:46]} 52. Rg7 {[%emt 0:00:42]} Bc8 {[%emt 0:00:17]} 53. Rg8 {[%emt 0:00:29]} Bb7 {[%emt 0:00:01]} 54. Rb8 {[%emt 0:00:12]} Ba6 {[%emt 0:01:24]} 55. Bc5 {[%emt 0:00:15]} Nd5 {[%emt 0:00:00]} 56. Re8 {[%emt 0:00:59]} Nbc7 {[%emt 0:00:52]} 57. Re1 {[%emt 0:00:07]} Nc3 {[%emt 0:01:06]} 58. Kf3 {[%emt 0:00:21]} N3d5 {[%emt 0:00:12]} 59. Kf2 {[%emt 0:00:50]} Bb5 {[%emt 0:00:34]} 60. Bd6 {[%emt 0:00:14]} Kf6 {[%emt 0:00:41]} 61. Re4 {[%emt 0:00:40]} Ba6 {[%emt 0:00:32]} 62. Ke1 {[%emt 0:00:11]} Bb5 {[%emt 0:00:40]} 63. Kd2 {[%emt 0:00:31]} Ba6 {[%emt 0:00:15]} 64. Re5 {[%emt 0:00:11]} Kf7 {[%emt 0:00:44]} 65. Bxc7 {[%emt 0:01:00]} Nxc7 {[%emt 0:00:03]} 66. Rc5 {[%emt 0:00:20]} Na8 {[%emt 0:00:22]} 67. Re5 {[%emt 0:00:52]} Bb7 {[%emt 0:00:41]} 68. Kc3 {[%emt 0:00:09]} Bg2 {[%emt 0:00:51]} 69. Kc4 {[%emt 0:00:15]} Bb7 {[%emt 0:00:34]} 70. Kc5 {[%emt 0:00:11]} Bg2 {[%emt 0:00:12]} 71. Kb5 {[%emt 0:00:34]} Bb7 {[%emt 0:00:19]} 72. Re1 {[%emt 0:00:45]} Bd5 {[%emt 0:00:18]} 73. Ka6 {[%emt 0:00:06]} Bg2 {[%emt 0:00:22]} 74. Ka7 {[%emt 0:00:21]} Kf8 {[%emt 0:00:48]} 75. Kb8 {[%emt 0:00:10]} Kf7 {[%emt 0:00:08]} 76. Re2 {[%emt 0:01:37]} Bc6 {[%emt 0:01:01]} 77. a6 {[%emt 0:00:27]} Bd5 {[%emt 0:00:51]} 78. Re5 {[%emt 0:01:06]} Bg2 {[%emt 0:00:31]} 79. Ka7 {[%emt 0:00:36]} Nc7 {[%emt 0:00:31]} 80. Kb6 {[%emt 0:00:19]} Na8+ {[%emt 0:00:20]} 81. Ka7 {[%emt 0:00:33]} Nc7 {[%emt 0:00:03]} 82. Rc5 {[%emt 0:00:13]} Ne6 {[%emt 0:00:55]} 83. Rc3 {[%emt 0:00:52]} Ke7 {[%emt 0:00:35]} 84. Kb8 {[%emt 0:00:21]} Nd8 {[%emt 0:00:26]} 85. Re3+ {[%emt 0:00:16]} Kd7 {[%emt 0:00:05]} 86. Rd3+ {[%emt 0:00:04]} Ke7 {[%emt 0:00:09]} 87. Kc7 {[%emt 0:00:39]} Ne6+ {[%emt 0:00:07]} 88. Kb6 {[%emt 0:00:40]} Be4 {[%emt 0:01:11]} 89. a7 {[%emt 0:00:16]} Ba8 {[%emt 0:00:32]} 90. Rh3 {[%emt 0:01:54]} Kd7 {[%emt 0:01:06]} 91. Rh8 {[%emt 0:00:00]} Nd8 {[%emt 0:00:06]} 92. Rh7+ {[%emt 0:00:00]} Ke6 {[%emt 0:00:49]} 93. Kc7 {[%emt 0:00:16]} Nc6 {[%emt 0:00:31]} 94. Rh6+ {[%emt 0:00:20]} Kd5 {[%emt 0:00:04]} 95. Kb6 {[%emt 0:00:07]} Ne7 {[%emt 0:00:54]} 96. Rh8 {[%emt 0:00:55]} Bc6 {[%emt 0:00:11]} 97. Rd8+ {[%emt 0:00:34]} Ke6 {[%emt 0:00:10]} 98. Kc7 {[%emt 0:00:28]} Bf3 {[%emt 0:01:01]} 99. Rb8 {[%emt 0:00:28]} Nd5+ {[%emt 0:00:26]} 100. Kd8 {[%emt 0:00:05]} Ne7 {[%emt 0:00:31]} 101. Rb6+ {[%emt 0:00:16]} Kf7 {[%emt 0:00:28]} 102. Rb3 {[%emt 0:00:00]} Bd5 {[%emt 0:00:44]} 103. Rd3 {[%emt 0:00:00]} Bc6 {[%emt 0:00:33]} 104. Rd7 {[%emt 0:00:06]} Bxd7 {[%emt 0:00:16]} 105. Kxd7 {[%emt 0:00:15]} Nd5 {[%emt 0:00:09]} 106. Kc6 {[%emt 0:00:02]} 1-0